bitfinex-derivatives/quotes_BTCF0:USTF0_20260131
["timestamp","ask_amount","ask_price","bid_price","bid_amount"]
[1769851271626,0.012056,83080.0,83077.0,5e-08]
[1769851271818,0.012057,83076.0,83058.0,0.012059]
[1769851272016,0.012057,83071.0,83055.0,0.01206]
[1769851272520,0.012053,83099.0,83057.0,0.20908928]
[1769851272713,0.012055,83090.0,83069.0,0.20908928]
[1769851273021,0.24929596,83110.0,83066.0,0.22114728]
[1769851273022,0.02573897,83088.0,83066.0,0.22114728]
[1769851273213,0.012055,83084.0,83068.0,0.012058]
[1769851274324,0.012055,83084.0,83065.0,0.012058]
[1769851274622,0.02573897,83088.0,83064.0,0.10844]
[1769851274623,9.7e-07,83088.0,83080.0,0.20908928]
[1769851274816,9.7e-07,83088.0,83069.0,0.20908928]
[1769851275126,9.7e-07,83088.0,83075.0,0.22114628]
[1769851275310,0.00014172,83089.0,83075.0,0.22114628]
[1769851276515,0.42584,83101.0,83075.0,0.20908928]
[1769851276826,0.10844,83101.0,83088.0,0.012055]
[1769851277125,0.120493,83101.0,83085.0,0.012055]
[1769851277522,9.824e-05,83100.0,83082.0,0.012056]
[1769851277729,9.824e-05,83100.0,83082.0,0.22114528]
[1769851278022,9.824e-05,83100.0,83084.0,0.012055]
[1769851279618,9.824e-05,83100.0,83082.0,0.20908928]
[1769851279818,9.824e-05,83100.0,83075.0,0.31752928]
[1769851280028,9.824e-05,83100.0,83075.0,0.10844]
[1769851280828,0.012054,83093.0,83076.0,0.012057]
[1769851282220,0.012054,83091.0,83075.0,0.10844]
[1769851282422,0.10848,83090.0,83075.0,0.120497]
[1769851283436,0.10848,83090.0,83064.0,0.17896192]
[1769851283437,0.10848,83090.0,83072.0,0.012057]
[1769851284329,0.10848,83090.0,83073.0,0.20908928]
[1769851284635,0.10848,83090.0,83076.0,0.012056]
[1769851285021,0.10848,83090.0,83073.0,0.012057]
[1769851285221,0.120535,83090.0,83070.0,0.012057]
[1769851285419,0.120535,83090.0,83070.0,0.22114628]
[1769851285625,0.120535,83090.0,83072.0,0.22114628]
[1769851286125,0.120535,83090.0,83072.0,0.012057]
[1769851287223,0.012055,83084.0,83063.0,0.20908928]
[1769851287424,0.012056,83082.0,83063.0,0.012058]
[1769851287926,0.012056,83080.0,83063.0,0.012058]
[1769851288126,0.012056,83080.0,83047.0,0.17896192]
[1769851288127,0.012057,83072.0,83051.0,0.01206]
[1769851288433,0.120536,83079.0,83056.0,0.20908928]
[1769851288618,0.10445174,83079.0,83064.0,0.20908928]
[1769851288819,0.10445174,83079.0,83060.0,0.10848]
[1769851289023,0.10445174,83079.0,83063.0,0.012058]
[1769851289224,0.10445174,83079.0,83060.0,0.10848]
[1769851289528,0.10445174,83079.0,83061.0,0.20908928]
[1769851289933,0.10445174,83079.0,83063.0,0.20908928]
[1769851290128,0.10445174,83079.0,83068.0,0.20908928]
[1769851290530,0.10445174,83079.0,83065.0,0.20908928]
[1769851291732,0.10445174,83079.0,83060.0,0.10848]
[1769851291733,0.012057,83076.0,83060.0,0.10848]
[1769851293332,0.10445174,83079.0,83044.0,0.20908928]
[1769851293636,0.012058,83066.0,83044.0,0.22115028]
[1769851294330,0.10848,83069.0,83047.0,0.012061]
[1769851294331,0.120538,83069.0,83047.0,0.012061]
[1769851294531,0.120538,83069.0,83049.0,0.01206]
[1769851294727,0.120538,83069.0,83046.0,0.17896192]
[1769851294728,0.10848,83069.0,83051.0,0.01206]
[1769851295035,0.10848,83069.0,83055.0,0.20908928]
[1769851295633,0.10848,83069.0,83057.0,0.20908928]
[1769851296127,0.012057,83074.0,83051.0,0.19102192]
[1769851296325,0.012057,83071.0,83049.0,0.17896192]
[1769851296532,0.012058,83068.0,83047.0,0.17896192]
[1769851296934,0.10848,83067.0,83046.0,0.17896192]
[1769851297233,0.10848,83067.0,83047.0,0.15500098]
[1769851298032,0.10848,83067.0,83048.0,0.012061]
[1769851298235,0.10848,83067.0,83045.0,0.15502941]
[1769851299040,0.10848,83067.0,83046.0,0.16740587]
[1769851299232,0.00018058,83064.0,83046.0,0.16740587]
[1769851299537,0.00018058,83064.0,83048.0,0.00018058]
[1769851299730,0.00018058,83064.0,83049.0,0.01206]
[1769851299929,0.00018058,83064.0,83048.0,0.15558035]
[1769851301024,0.00018058,83064.0,83049.0,0.01206]
[1769851301227,0.00018058,83064.0,83049.0,0.16772792]
[1769851302339,0.10848,83069.0,83055.0,0.15575225]
[1769851302530,0.10848,83069.0,83058.0,0.16781125]
[1769851303427,0.10848,83069.0,83058.0,0.15575225]
[1769851307335,0.10848,83079.0,83064.0,0.12010542]
[1769851307541,0.10848,83083.0,83066.0,0.12010542]
[1769851307727,0.06757039,83100.0,83066.0,0.12010542]
[1769851308043,0.012056,83083.0,83066.0,0.12010542]
[1769851308228,0.012056,83080.0,83073.0,0.00018058]
[1769851309933,0.012053,83099.0,83084.0,0.12024158]
[1769851310137,0.005,83114.0,83084.0,0.12024158]
[1769851310340,0.012053,83103.0,83084.0,0.12024158]
[1769851310547,0.012052,83107.0,83084.0,0.12024158]
[1769851310843,0.012052,83108.0,83089.0,0.12024158]
[1769851311044,0.120531,83112.0,83091.0,0.12024519]
[1769851313345,0.10848,83112.0,83093.0,0.120221]
[1769851313543,0.10848,83112.0,83101.0,0.120221]
[1769851313745,0.10848,83120.0,83101.0,0.120221]
[1769851313948,0.10848,83120.0,83103.0,0.120221]
[1769851314551,0.012051,83114.0,83088.0,0.132276]
[1769851314849,0.01205,83122.0,83103.0,0.12029767]
[1769851315043,0.01205,83119.0,83103.0,0.00018058]
[1769851315437,0.01205,83119.0,83098.0,0.12011709]
[1769851315949,0.01205,83119.0,83103.0,0.00018047]
[1769851317146,0.012051,83116.0,83103.0,0.00018047]
[1769851317544,0.012051,83113.0,83103.0,0.00018047]
[1769851318148,0.012052,83110.0,83097.0,0.10848]
[1769851318342,0.012052,83107.0,83097.0,0.10848]
[1769851318659,0.012053,83104.0,83097.0,0.10440243]
[1769851318837,0.10848,83108.0,83087.0,0.10848]
[1769851319037,0.012053,83098.0,83087.0,0.10848]
[1769851321238,0.012054,83094.0,83087.0,0.10848]
[1769851321757,0.012054,83094.0,83076.0,0.22846586]
[1769851321951,0.012053,83099.0,83078.0,0.11996295]
[1769851322246,0.10848,83103.0,83076.0,0.10848]
[1769851322247,0.012054,83097.0,83080.0,0.11996295]
[1769851322443,0.012054,83093.0,83080.0,0.11996295]
[1769851323446,0.012054,83096.0,83080.0,0.11996295]
[1769851324145,0.012053,83099.0,83080.0,0.13201895]
[1769851324345,0.10848,83103.0,83080.0,0.11996295]
[1769851324651,0.012053,83098.0,83082.0,0.11995109]
[1769851327053,0.012054,83096.0,83082.0,0.11995109]
[1769851327451,0.012055,83089.0,83076.0,0.22852684]
[1769851328460,0.012054,83092.0,83076.0,0.22852684]
[1769851328755,0.012054,83092.0,83077.0,0.13210284]
[1769851328952,0.012055,83090.0,83077.0,0.12004684]
[1769851331355,0.012055,83088.0,83077.0,0.12004684]
[1769851332153,0.012055,83089.0,83077.0,0.12004684]
[1769851332354,0.012055,83088.0,83077.0,0.12004684]
[1769851333151,0.012056,83078.0,83057.0,0.13197908]
[1769851333356,0.012056,83077.0,83061.0,0.11992008]
[1769851333558,0.012056,83078.0,83063.0,0.11992008]
[1769851336156,0.10848,83079.0,83056.0,0.11982614]
[1769851336358,0.012057,83071.0,83056.0,0.11982614]
[1769851336657,0.012058,83064.0,83049.0,0.10848]
[1769851336852,0.012058,83064.0,83050.0,0.11982614]
[1769851339052,0.012058,83067.0,83050.0,0.11982614]
[1769851341054,0.10848,83069.0,83052.0,0.11555432]
[1769851341258,0.31744,83082.0,83054.0,0.11555432]
[1769851341259,0.012057,83071.0,83054.0,0.11555432]
[1769851344563,0.012058,83069.0,83054.0,0.11555432]
[1769851345261,0.012057,83073.0,83048.0,0.11532638]
[1769851345461,0.012058,83064.0,83048.0,0.11532638]
[1769851345770,0.10848,83074.0,83048.0,0.11532638]
[1769851347960,0.012059,83060.0,83048.0,0.11532638]
[1769851349061,0.012059,83058.0,83042.0,0.12736449]
[1769851350060,0.25743308,83060.0,83042.0,0.11530349]
[1769851351668,0.01206,83050.0,83042.0,0.11530349]
[1769851352369,0.012059,83059.0,83037.0,0.10852]
[1769851352570,0.012061,83048.0,83038.0,0.11513871]
[1769851354771,0.25743308,83050.0,83038.0,0.11513871]
[1769851354969,0.10852,83052.0,83038.0,0.11513871]
[1769851354970,0.12058,83052.0,83038.0,0.11513871]
[1769851356470,0.012061,83048.0,83038.0,0.11513871]
[1769851357368,0.012061,83048.0,83034.0,0.00014415]
[1769851357674,0.012061,83048.0,83034.0,0.11505346]
[1769851358374,0.012061,83048.0,83036.0,0.11488796]
[1769851358566,0.01206,83051.0,83036.0,0.11488796]
[1769851358879,0.012061,83049.0,83036.0,0.11488796]
[1769851359173,0.06603621,83079.0,83050.0,0.11490512]
[1769851359571,0.20607118,83070.0,83050.0,0.11490512]
[1769851359772,0.10852,83069.0,83050.0,0.11490512]
[1769851360071,0.012058,83064.0,83050.0,0.11490512]
[1769851360583,0.012059,83062.0,83050.0,0.11490512]
[1769851361476,0.10852,83069.0,83050.0,0.11490512]
[1769851361675,0.10852,83069.0,83054.0,0.11544615]
[1769851362077,0.10852,83069.0,83056.0,0.11543532]
[1769851362876,0.10852,83069.0,83052.0,0.17896192]
[1769851362877,0.10432667,83069.0,83058.0,0.11528202]
[1769851363971,0.10432667,83069.0,83060.0,0.11526721]
[1769851364882,0.10432667,83069.0,83054.0,0.11524213]
[1769851365073,0.012058,83067.0,83054.0,0.11524213]
[1769851365675,0.012058,83065.0,83054.0,0.11524213]
[1769851366679,0.012058,83063.0,83049.0,0.11523003]
[1769851367376,0.10432667,83069.0,83049.0,0.11523003]
[1769851368880,0.012059,83059.0,83049.0,0.11523003]
[1769851369081,0.012059,83057.0,83049.0,0.11523003]
[1769851369884,0.01206,83055.0,83048.0,0.10852]
[1769851370382,0.01206,83056.0,83048.0,0.10852]
[1769851370679,0.01206,83055.0,83048.0,0.10852]
[1769851371279,0.01206,83051.0,83044.0,0.11506525]
[1769851371481,0.012061,83044.0,83039.0,0.22351282]
[1769851371777,0.012061,83047.0,83039.0,0.22351282]
[1769851371977,0.012061,83047.0,83040.0,0.11497998]
[1769851372578,0.01206,83050.0,83040.0,0.11497998]
[1769851372778,0.10852,83063.0,83043.0,0.11079026]
[1769851372970,0.10852,83063.0,83045.0,0.07461693]
[1769851373168,0.012059,83061.0,83048.0,0.01206]
[1769851373373,0.012059,83059.0,83049.0,0.07461693]
[1769851374682,0.012059,83062.0,83049.0,0.08667693]
[1769851374884,0.012059,83061.0,83049.0,0.07461693]
[1769851377479,0.012059,83059.0,83049.0,0.07461693]
[1769851380488,0.012059,83062.0,83049.0,0.07461693]
[1769851381387,0.10852,83075.0,83062.0,0.07008045]
[1769851382286,0.012057,83074.0,83062.0,0.07008045]
[1769851382771,0.10852,83075.0,83062.0,0.07008045]
[1769851384282,0.120577,83075.0,83062.0,0.07008045]
[1769851386881,0.012057,83073.0,83062.0,0.07008045]
[1769851388590,0.012057,83071.0,83062.0,0.07008045]
[1769851390688,0.012058,83069.0,83062.0,0.07008045]
[1769851393290,0.012057,83070.0,83062.0,0.07008045]
[1769851393494,0.012058,83068.0,83062.0,0.07008045]
[1769851395190,0.012058,83067.0,83062.0,0.07008045]
[1769851396090,0.012057,83074.0,83062.0,4.5e-07]
[1769851396290,0.012058,83064.0,83062.0,4.5e-07]
[1769851398790,0.012059,83063.0,83053.0,0.0468837]
[1769851399087,0.00700173,83065.0,83050.0,0.10852]
[1769851399293,0.060271,83095.0,83035.0,0.60136]
[1769851399294,0.00700173,83061.0,83040.0,0.10852]
[1769851399594,0.012061,83045.0,83040.0,0.15505063]
[1769851399788,0.012061,83045.0,83040.0,0.10852]
[1769851399995,0.012059,83056.0,83041.0,0.04653063]
[1769851400193,0.01902678,83056.0,83041.0,0.04653063]
[1769851400493,0.012061,83048.0,83040.0,0.10852]
[1769851401489,0.012061,83046.0,83040.0,0.10852]
[1769851401795,0.012061,83047.0,83040.0,0.10852]
[1769851401989,0.00696778,83056.0,83037.0,0.04653063]
[1769851402195,0.012061,83044.0,83037.0,0.04653063]
[1769851404694,0.012061,83044.0,83035.0,0.10852]
[1769851404896,0.012062,83039.0,83035.0,0.10852]
[1769851405397,0.012062,83039.0,83034.0,0.00014415]
[1769851405896,0.012062,83039.0,83030.0,0.15505063]
[1769851406092,0.012063,83035.0,83026.0,0.04653063]
[1769851406492,0.10852,83041.0,83017.0,0.04653063]
[1769851406688,0.012064,83027.0,83013.0,0.04653063]
[1769851407395,0.012064,83022.0,83013.0,0.04653063]
[1769851409801,0.012065,83020.0,83013.0,0.04653063]
[1769851409995,9.272e-05,83026.0,83006.0,0.18046105]
[1769851410196,0.012064,83025.0,83004.0,0.04653063]
[1769851410500,0.012065,83018.0,83004.0,0.04653063]
[1769851411698,0.012065,83018.0,83002.0,0.04653063]
[1769851412796,0.012065,83018.0,83003.0,0.012067]
[1769851413702,0.012065,83018.0,82987.0,0.04674919]
[1769851413703,0.012067,83006.0,82987.0,0.04674919]
[1769851413902,0.10866415,83005.0,82982.0,0.10852]
[1769851414208,0.10852,83016.0,82996.0,0.012068]
[1769851414398,0.012066,83014.0,82996.0,0.012068]
[1769851414899,0.012066,83012.0,82996.0,0.012068]
[1769851415908,0.012066,83012.0,82997.0,0.04653063]
[1769851419106,0.012061,83049.0,83001.0,0.04600671]
[1769851419306,0.012061,83049.0,83006.0,0.04600671]
[1769851419307,0.012064,83026.0,83006.0,0.04600671]
[1769851419606,0.012064,83024.0,83010.0,0.04613895]
[1769851420702,0.10856,83025.0,83010.0,0.04613895]
[1769851421010,0.012065,83021.0,83007.0,0.04639129]
[1769851421411,0.012064,83025.0,83010.0,0.04639129]
[1769851421900,0.10856,83046.0,83020.0,0.04651848]
[1769851422103,0.012062,83040.0,83024.0,0.04651848]
[1769851422310,0.012062,83038.0,83024.0,0.04651848]
[1769851422713,0.012062,83036.0,83024.0,0.04651848]
[1769851423412,0.012063,83034.0,83018.0,0.04665816]
[1769851424106,0.120623,83034.0,83018.0,0.04665816]
[1769851425807,0.10856,83034.0,83020.0,0.04699814]
[1769851427309,0.012063,83031.0,82998.0,0.012068]
[1769851427513,0.10856,83034.0,82988.0,0.67493267]
[1769851427514,0.31772,83030.0,83000.0,0.04699395]
[1769851427809,0.012064,83023.0,83000.0,0.04699395]
[1769851428013,0.10856,83022.0,83007.0,0.04699395]
[1769851428216,0.10856,83022.0,82999.0,0.012068]
[1769851428217,0.10856,83022.0,83013.0,0.04699395]
[1769851428509,0.10856,83022.0,83015.0,0.04699395]
[1769851428711,0.10856,83033.0,83021.0,0.012064]
[1769851428916,0.10856,83033.0,83022.0,0.04699395]
[1769851429709,0.10856,83033.0,83017.0,0.04702636]
[1769851429909,0.10856,83033.0,83020.0,0.04702636]
[1769851433221,0.10856,83033.0,83013.0,0.012066]
[1769851433411,0.012063,83032.0,83013.0,0.012066]
[1769851433814,0.012063,83032.0,83013.0,0.0590864]
[1769851434620,0.012063,83032.0,83014.0,0.0470204]
[1769851435418,0.012063,83031.0,83014.0,0.0470204]
[1769851436714,0.012063,83031.0,83013.0,0.012066]
[1769851437317,0.012063,83031.0,83014.0,0.04698241]
[1769851440520,0.012063,83030.0,83014.0,0.04698241]
[1769851441424,0.012064,83028.0,83014.0,0.04698241]
[1769851442322,0.012064,83028.0,82993.0,0.24061267]
[1769851442323,0.012065,83015.0,82995.0,0.0469916]
[1769851442526,0.22330597,83014.0,82991.0,0.0469916]
[1769851442725,0.012065,83016.0,82991.0,0.0469916]
[1769851442726,0.012067,83006.0,82991.0,0.0469916]
[1769851443823,0.52399337,83010.0,82987.0,0.04692589]
[1769851444124,0.11478799,83009.0,82987.0,0.04692589]
[1769851444322,0.11478799,83008.0,82987.0,0.04692589]
[1769851444526,0.11477194,83007.0,82987.0,0.04692589]
[1769851444728,0.012068,83000.0,82987.0,0.04692589]
[1769851445025,0.120628,83000.0,82987.0,0.04692589]
[1769851445224,0.120628,83000.0,82983.0,0.05897976]
[1769851445423,0.120628,83000.0,82984.0,0.04690976]
[1769851447035,0.012068,82998.0,82984.0,0.04690976]
[1769851447525,0.012068,82996.0,82984.0,0.04690976]
[1769851448634,0.10856,83000.0,82984.0,0.04690976]
[1769851448935,0.012069,82992.0,82979.0,0.04705541]
[1769851450330,0.012068,82995.0,82979.0,0.04705541]
[1769851451535,0.20646921,82990.0,82979.0,0.04705541]
[1769851451726,0.31502921,82990.0,82979.0,0.04705541]
[1769851452230,0.31502921,82990.0,82979.0,0.00011362]
[1769851453027,0.31502921,82990.0,82968.0,0.10856]
[1769851453937,0.0001025,82989.0,82978.0,0.012071]
[1769851455240,0.0001025,82989.0,82975.0,0.012071]
[1769851455434,0.0001025,82989.0,82972.0,0.04341488]
[1769851456237,0.0121715,82989.0,82972.0,0.04341488]
[1769851457148,0.01207,82986.0,82972.0,0.02728345]
[1769851457346,0.01207,82986.0,82970.0,0.012072]
[1769851457748,0.01207,82986.0,82971.0,0.012072]
[1769851458042,0.012069,82987.0,82968.0,0.012072]
[1769851458248,0.0001025,82989.0,82968.0,0.012072]
[1769851458639,0.0121715,82989.0,82964.0,0.012073]
[1769851459050,0.012071,82979.0,82962.0,0.012073]
[1769851459249,0.1086,82978.0,82962.0,0.012073]
[1769851459442,0.012071,82977.0,82962.0,0.04200355]
[1769851459642,0.012071,82977.0,82963.0,0.02993055]
[1769851459843,0.1086,82978.0,82963.0,0.02993055]
[1769851460038,0.120671,82978.0,82963.0,0.02993055]
[1769851461252,0.012071,82974.0,82958.0,0.02992676]
[1769851461555,0.012072,82972.0,82956.0,0.1086]
[1769851461851,0.012072,82972.0,82953.0,0.02992676]
[1769851462043,0.1086,82971.0,82953.0,0.02992676]
[1769851462245,0.00011362,82977.0,82962.0,0.02992676]
[1769851462448,0.1086,82977.0,82966.0,0.02992676]
[1769851463050,0.012069,82988.0,82968.0,0.02999313]
[1769851463352,0.1086,82987.0,82973.0,0.04206413]
[1769851463845,0.1086,82987.0,82973.0,0.02999313]
[1769851464549,0.12067,82987.0,82973.0,0.02999313]
[1769851464850,0.01207,82985.0,82973.0,0.02999313]
[1769851465452,0.1086,82987.0,82968.0,0.012072]
[1769851465453,0.12067,82987.0,82969.0,0.03020023]
[1769851465645,0.01207,82985.0,82969.0,0.03020023]
[1769851465845,0.01207,82985.0,82971.0,0.03020023]
[1769851467352,0.120669,82987.0,82962.0,0.012073]
[1769851467551,0.012071,82977.0,82962.0,0.012073]
[1769851468645,0.120671,82977.0,82962.0,0.012073]
[1769851468845,0.012071,82975.0,82960.0,0.012073]
[1769851469242,0.1086,82977.0,82957.0,0.012074]
[1769851469448,0.012072,82969.0,82955.0,0.03024395]
[1769851469648,0.012072,82972.0,82955.0,0.03024395]
[1769851469850,0.012072,82972.0,82957.0,0.03024395]
[1769851470356,0.1086,82977.0,82957.0,0.03024395]
[1769851471249,0.1086,82977.0,82956.0,0.012074]
[1769851472451,0.012071,82976.0,82961.0,0.0302137]
[1769851474656,0.1086,82977.0,82967.0,0.0302137]
[1769851475354,0.012069,82990.0,82975.0,0.03016153]
[1769851475652,0.22459281,82989.0,82967.0,0.012072]
[1769851475861,0.11595281,82988.0,82967.0,0.012072]
[1769851476155,0.10864,82989.0,82967.0,0.012072]
[1769851476156,0.11595281,82987.0,82967.0,0.04223353]
[1769851476358,0.11595281,82986.0,82967.0,0.04223353]
[1769851476662,0.10864,82989.0,82967.0,0.04223353]
[1769851476960,0.01207,82982.0,82967.0,0.04223353]
[1769851479359,0.01207,82982.0,82967.0,0.012072]
[1769851479950,0.01207,82982.0,82967.0,0.04226922]
[1769851480752,0.012071,82975.0,82962.0,0.03019722]
[1769851480956,0.012071,82975.0,82963.0,0.012072]
[1769851481554,0.012071,82978.0,82963.0,0.012072]
[1769851482760,0.012071,82974.0,82963.0,0.012072]
[1769851484264,0.012071,82977.0,82964.0,0.03011275]
[1769851484464,0.012072,82973.0,82959.0,0.03011275]
[1769851484766,0.012072,82973.0,82959.0,0.04218475]
[1769851485356,0.012072,82973.0,82959.0,0.012072]
[1769851485760,0.012072,82971.0,82958.0,0.10864]
[1769851485953,0.012072,82971.0,82958.0,0.13883528]
[1769851486156,0.012071,82978.0,82953.0,0.03019528]
[1769851486364,0.11614906,82977.0,82953.0,0.03019528]
[1769851486564,0.11614906,82976.0,82953.0,0.03019528]
[1769851486767,0.20646921,82970.0,82955.0,0.03019528]
[1769851486965,0.012072,82967.0,82955.0,0.03019528]
[1769851489068,0.20646921,82965.0,82950.0,0.03012449]
[1769851489263,0.20646921,82960.0,82951.0,0.012072]
[1769851489464,0.20646921,82960.0,82950.0,0.03012449]
[1769851489766,0.20646921,82960.0,82950.0,0.04219649]
[1769851490861,0.20646921,82960.0,82951.0,0.012075]
[1769851492667,0.20646921,82960.0,82941.0,0.03003909]
[1769851492869,0.20646921,82960.0,82942.0,0.03004375]
[1769851493069,0.012073,82962.0,82942.0,0.03004375]
[1769851493070,0.20646921,82952.0,82945.0,0.012075]
[1769851493268,0.20646921,82960.0,82942.0,0.04211975]
[1769851493965,0.012074,82958.0,82943.0,0.03004375]
[1769851494171,0.10864,82968.0,82952.0,0.012075]
[1769851494172,0.012072,82968.0,82952.0,0.012075]
[1769851494474,0.10864,82967.0,82953.0,0.03004375]
[1769851495167,0.21854221,82963.0,82944.0,0.03002442]
[1769851495569,0.21854221,82963.0,82946.0,0.03002442]
[1769851496074,0.20646921,82963.0,82946.0,0.03002442]
[1769851496670,0.012073,82966.0,82946.0,0.03002442]
[1769851496870,0.012073,82966.0,82947.0,0.012072]
[1769851497068,0.012073,82966.0,82948.0,0.03005704]
[1769851497268,0.012073,82966.0,82947.0,0.024147]
[1769851497673,0.012073,82964.0,82947.0,0.012072]
[1769851498176,0.012073,82962.0,82947.0,0.012072]
[1769851498871,0.012073,82962.0,82948.0,0.03006832]
[1769851500380,0.012073,82962.0,82944.0,0.012076]
[1769851500579,0.012073,82962.0,82945.0,0.012072]
[1769851500969,0.012073,82962.0,82946.0,0.03008612]
[1769851501671,0.012073,82960.0,82941.0,0.012076]
[1769851501866,0.012073,82960.0,82941.0,0.024148]
[1769851502576,0.012073,82960.0,82944.0,0.03008612]
[1769851502778,0.012073,82960.0,82946.0,0.03008612]
[1769851502977,0.4266,82967.0,82946.0,0.03008612]
[1769851502978,0.012073,82963.0,82946.0,0.03008612]
[1769851503171,0.012073,82966.0,82948.0,0.0301004]
[1769851503572,0.012073,82966.0,82950.0,0.0301004]
[1769851503978,0.4266,82967.0,82952.0,0.0301004]
[1769851504174,0.10864,82967.0,82952.0,0.0301004]
[1769851504878,0.10864,82967.0,82955.0,0.012074]
[1769851505178,0.10864,82967.0,82956.0,0.02988793]
[1769851505478,0.10864,82967.0,82957.0,0.02988793]
[1769851508380,0.10864,82967.0,82954.0,0.012074]
[1769851508579,0.10864,82967.0,82955.0,0.012072]
[1769851508966,0.10864,82967.0,82957.0,0.02977503]
[1769851509179,0.10864,82967.0,82958.0,0.012072]
[1769851509875,0.012073,82964.0,82947.0,0.15049003]
[1769851510075,0.10864,82967.0,82947.0,0.13841503]
[1769851510272,0.10864,82967.0,82948.0,0.04184703]
[1769851510471,0.012074,82959.0,82948.0,0.012072]
[1769851510672,0.012073,82965.0,82948.0,0.012072]
[1769851510872,0.012073,82965.0,82944.0,0.02977503]
[1769851511074,0.012073,82965.0,82949.0,0.02982091]
[1769851511471,0.012073,82965.0,82948.0,0.012075]
[1769851511472,0.012073,82965.0,82951.0,0.02982091]
[1769851512583,0.012073,82966.0,82951.0,0.02982091]
[1769851516276,0.012073,82963.0,82950.0,0.012072]
[1769851516780,0.012073,82966.0,82950.0,0.012072]
[1769851516980,0.012073,82964.0,82950.0,0.04194128]
[1769851517284,0.012073,82964.0,82951.0,0.02986928]
[1769851517479,0.10864,82967.0,82950.0,0.00749344]
[1769851517781,0.11505615,82966.0,82944.0,0.02986928]
[1769851517985,0.012074,82958.0,82945.0,0.00749344]
[1769851518576,0.10864,82957.0,82945.0,0.00749344]
[1769851519085,0.10864,82957.0,82946.0,0.02989547]
[1769851521372,0.48048,82976.0,82946.0,0.02989547]
[1769851521373,0.10864,82970.0,82946.0,0.02989547]
[1769851521675,0.1107198,82969.0,82946.0,0.02989547]
[1769851521886,0.1107198,82968.0,82945.0,0.18831699]
[1769851522076,0.1107198,82967.0,82945.0,0.00749344]
[1769851522272,0.1107198,82966.0,82945.0,0.00749344]
[1769851522478,0.012073,82962.0,82945.0,0.00749344]
[1769851522675,0.012073,82962.0,82946.0,0.00749344]
[1769851522897,0.012073,82962.0,82946.0,0.03743125]
[1769851523188,0.012073,82962.0,82947.0,0.02995927]
[1769851524987,0.012073,82965.0,82947.0,0.02995927]
[1769851525188,0.10864,82970.0,82948.0,0.02999194]
[1769851525189,0.11072596,82964.0,82948.0,0.02999194]
[1769851525388,0.012072,82968.0,82948.0,0.02999194]
[1769851525584,0.11072391,82967.0,82950.0,0.02999194]
[1769851525786,0.12279691,82966.0,82950.0,0.02999194]
[1769851525990,0.11072391,82965.0,82951.0,0.03748538]
[1769851526192,0.11072391,82965.0,82952.0,0.00749344]
[1769851526584,0.10864,82964.0,82952.0,0.03748538]
[1769851527085,0.012072,82969.0,82952.0,0.03748538]
[1769851527392,0.11072316,82968.0,82952.0,0.03748538]
[1769851527593,0.11072316,82967.0,82952.0,0.03748538]
[1769851527890,0.11072316,82966.0,82952.0,0.03748538]
[1769851528091,0.21936316,82965.0,82952.0,0.03748538]
[1769851528292,0.11072316,82964.0,82952.0,0.03748538]
[1769851528893,0.012072,82969.0,82952.0,0.03748538]
[1769851529093,0.012072,82967.0,82952.0,0.03748538]
[1769851529396,0.11072344,82966.0,82952.0,0.03748538]
[1769851529987,0.11072344,82966.0,82953.0,0.03003901]
[1769851530187,0.11072344,82965.0,82953.0,0.03003901]
[1769851530389,0.012072,82970.0,82953.0,0.03003901]
[1769851530589,0.11071996,82969.0,82953.0,0.03003901]
[1769851530786,0.11071996,82968.0,82953.0,0.03003901]
[1769851530987,0.11071996,82967.0,82955.0,0.02999812]
[1769851531191,0.10864,82976.0,82959.0,0.02999812]
[1769851531495,0.10864,82976.0,82966.0,0.02999812]
[1769851531988,0.10801845,82976.0,82968.0,0.02999812]
[1769851533482,0.10801845,82976.0,82969.0,0.00749344]
[1769851533681,0.10801845,82976.0,82969.0,0.03750119]
[1769851533887,0.02013527,82976.0,82970.0,0.03000775]
[1769851535189,0.01207,82985.0,82970.0,0.03000775]
[1769851535395,0.47748,82986.0,82971.0,0.012072]
[1769851535793,0.01207,82984.0,82972.0,0.00749344]
[1769851535992,0.47748,82986.0,82972.0,0.00749344]
[1769851536296,0.12071,82987.0,82972.0,0.03754492]
[1769851537491,0.12071,82987.0,82972.0,0.04961692]
[1769851537695,0.01207,82985.0,82972.0,0.03754492]
[1769851539397,0.10864,82987.0,82972.0,0.03754492]
[1769851539697,0.12071,82987.0,82972.0,0.03754492]
[1769851541001,0.01207,82985.0,82972.0,0.03754492]
[1769851542601,0.10864,82987.0,82972.0,0.00749344]
[1769851542793,0.10864,82987.0,82974.0,0.012071]
[1769851542995,0.12071,82987.0,82974.0,0.012071]
[1769851543302,0.01207,82985.0,82975.0,0.00749344]
[1769851545191,0.01207,82983.0,82975.0,0.00749344]
[1769851545796,0.01207,82983.0,82975.0,0.03750869]
[1769851546002,0.10864,82987.0,82975.0,0.03750869]
[1769851546393,0.012068,82996.0,82975.0,0.03750869]
[1769851546599,0.012069,82989.0,82977.0,0.03001525]
[1769851547105,0.012069,82989.0,82979.0,0.02993969]
[1769851552812,0.012069,82989.0,82980.0,0.00749344]
[1769851553307,0.01207,82987.0,82980.0,0.00749344]
[1769851553904,0.012069,82990.0,82981.0,0.02995569]
[1769851554312,0.012069,82990.0,82980.0,0.00749344]
[1769851555014,0.012069,82990.0,82980.0,0.03744371]
[1769851555315,0.012069,82990.0,82981.0,0.02995027]
[1769851560015,0.60864,83000.0,82981.0,0.02995027]
[1769851560217,0.60864,83000.0,82980.0,0.00749344]
[1769851560218,0.012069,82988.0,82980.0,0.00749344]
[1769851560414,0.01207,82987.0,82980.0,0.00749344]
[1769851560715,0.60864,83000.0,82968.0,0.31943357]
[1769851560914,0.1086,82999.0,82969.0,0.00749344]
[1769851561112,0.10705371,82998.0,82969.0,0.00749344]
[1769851561308,0.01207,82982.0,82969.0,0.00749344]
[1769851561514,0.1086,82988.0,82969.0,0.00749344]
[1769851562421,0.1086,82988.0,82969.0,0.04955429]
[1769851562611,0.1086,82988.0,82970.0,0.02998885]
[1769851564223,0.01207,82983.0,82970.0,0.02998885]
[1769851565118,0.012071,82980.0,82970.0,0.02998885]
[1769851565619,0.012071,82980.0,82969.0,0.00749344]